[Event "Early-Titled-Tuesday-Blitz-January-30-2024"]
[Site "Chess.com"]
[Date "2024.01.30"]
[Round "1"]
[White "Snegokhod"]
[Black "UnTucopalaTimba"]
[Result "1-0"]
[WhiteElo "2554"]
[BlackElo "1921"]
[TimeControl "180+1"]
[EndTime "8:05:10 PST"]
[Termination "Snegokhod won by resignation"]

1. e4 {[%clk 0:03:00.9]} 1... c6 {[%clk 0:02:59.1]} 2. d3 {[%clk 0:03:00.3]}
2... d5 {[%clk 0:02:58.8]} 3. Nd2 {[%clk 0:03:00.9]} 3... g6 {[%clk 0:02:55.1]}
4. Ngf3 {[%clk 0:03:00]} 4... Bg7 {[%clk 0:02:54.8]} 5. d4 {[%clk 0:03:00.2]}
5... dxe4 {[%clk 0:02:52.2]} 6. Nxe4 {[%clk 0:02:59.9]} 6... Nf6 {[%clk
0:02:52.4]} 7. Nxf6+ {[%clk 0:02:59.5]} 7... Bxf6 {[%clk 0:02:51.7]} 8. Bh6
{[%clk 0:02:58]} 8... Bf5 {[%clk 0:02:44.7]} 9. c3 {[%clk 0:02:55.8]} 9... Nd7
{[%clk 0:02:42]} 10. Qd2 {[%clk 0:02:53.6]} 10... Qb6 {[%clk 0:02:33.9]} 11. Bc4
{[%clk 0:02:51.5]} 11... Qc7 {[%clk 0:02:19.5]} 12. O-O {[%clk 0:02:50.6]} 12...
b5 {[%clk 0:02:18.6]} 13. Bb3 {[%clk 0:02:49.7]} 13... a5 {[%clk 0:02:18.2]} 14.
a4 {[%clk 0:02:43]} 14... Nb6 {[%clk 0:02:12.3]} 15. axb5 {[%clk 0:02:41.6]}
15... cxb5 {[%clk 0:02:10.4]} 16. Rfe1 {[%clk 0:02:41.7]} 16... Nc4 {[%clk
0:02:02.6]} 17. Qe2 {[%clk 0:02:39.3]} 17... Be6 {[%clk 0:01:49]} 18. Ng5 {[%clk
0:02:35.5]} 18... Bxg5 {[%clk 0:01:48.2]} 19. Bxg5 {[%clk 0:02:34.9]} 19... O-O
{[%clk 0:01:47.7]} 20. Bc2 {[%clk 0:02:22.2]} 20... Rfe8 {[%clk 0:01:37.4]} 21.
Bd3 {[%clk 0:02:19]} 21... b4 {[%clk 0:01:16.2]} 22. h4 {[%clk 0:02:10.9]} 22...
bxc3 {[%clk 0:01:14.1]} 23. bxc3 {[%clk 0:02:10.5]} 23... Kg7 {[%clk 0:01:08.8]}
24. h5 {[%clk 0:02:10.3]} 24... h6 {[%clk 0:00:56.9]} 25. Bh4 {[%clk 0:02:07.3]}
25... Qf4 {[%clk 0:00:50]} 26. Bg3 {[%clk 0:02:03.5]} 26... Qd2 {[%clk
0:00:42.5]} 27. Bxc4 {[%clk 0:02:00.2]} 27... Qxe2 {[%clk 0:00:40.6]} 28. Bxe2
{[%clk 0:01:59.8]} 28... Rec8 {[%clk 0:00:37.1]} 29. hxg6 {[%clk 0:01:55.7]}
29... Rxc3 {[%clk 0:00:33.4]} 30. d5 {[%clk 0:01:55.1]} 30... Bxd5 {[%clk
0:00:28.4]} 31. Be5+ {[%clk 0:01:54.5]} 1-0

[Event "Early-Titled-Tuesday-Blitz-January-30-2024"]
[Site "Chess.com"]
[Date "2024.01.30"]
[Round "1"]
[White "CristianS27"]
[Black "SmirnovTimofey2000"]
[Result "1-0"]
[WhiteElo "2558"]
[BlackElo "1945"]
[TimeControl "180+1"]
[EndTime "8:05:11 PST"]
[Termination "CristianS27 won by resignation"]

1. e4 {[%clk 0:03:00.9]} 1... e5 {[%clk 0:02:59.1]} 2. Nf3 {[%clk 0:02:57.3]}
2... Nf6 {[%clk 0:02:59.2]} 3. Nxe5 {[%clk 0:02:57.1]} 3... d6 {[%clk 0:02:59]}
4. Nf3 {[%clk 0:02:55.4]} 4... Nxe4 {[%clk 0:02:59.5]} 5. d4 {[%clk 0:02:56.3]}
5... d5 {[%clk 0:03:00]} 6. Bd3 {[%clk 0:02:56.7]} 6... Nc6 {[%clk 0:03:00]} 7.
O-O {[%clk 0:02:57]} 7... Be7 {[%clk 0:03:00]} 8. Re1 {[%clk 0:02:57.7]} 8...
Bg4 {[%clk 0:02:58.1]} 9. c4 {[%clk 0:02:58.1]} 9... Nf6 {[%clk 0:02:57.2]} 10.
cxd5 {[%clk 0:02:57.7]} 10... Nxd5 {[%clk 0:02:50.1]} 11. Nc3 {[%clk 0:02:58.2]}
11... O-O {[%clk 0:02:43.2]} 12. h3 {[%clk 0:02:58.7]} 12... Bh5 {[%clk
0:02:39.1]} 13. Bxh7+ {[%clk 0:02:58.5]} 13... Kxh7 {[%clk 0:02:32.4]} 14. Ng5+
{[%clk 0:02:58.8]} 14... Bxg5 {[%clk 0:02:30.4]} 15. Qxh5+ {[%clk 0:02:58.5]}
15... Bh6 {[%clk 0:02:24.1]} 16. Bxh6 {[%clk 0:02:52.9]} 16... Nf6 {[%clk
0:01:56.3]} 17. Qf5+ {[%clk 0:02:37.9]} 17... g6 {[%clk 0:01:26.3]} 18. Qf4
{[%clk 0:02:29.7]} 18... Nh5 {[%clk 0:01:12.5]} 19. Qd2 {[%clk 0:02:19.3]} 19...
Re8 {[%clk 0:01:05.5]} 20. Rxe8 {[%clk 0:02:17.3]} 20... Qxe8 {[%clk 0:01:06]}
21. Re1 {[%clk 0:02:18.1]} 21... Qd7 {[%clk 0:01:05]} 22. d5 {[%clk 0:02:14.3]}
22... Ne7 {[%clk 0:00:57]} 23. Bg5 {[%clk 0:02:09.1]} 23... Re8 {[%clk
0:00:41.5]} 24. Qe3 {[%clk 0:02:04.4]} 24... Nxd5 {[%clk 0:00:07.8]} 25. Qxe8
{[%clk 0:02:02.9]} 1-0

[Event "Early-Titled-Tuesday-Blitz-January-30-2024"]
[Site "Chess.com"]
[Date "2024.01.30"]
[Round "1"]
[White "HelvertHernandez"]
[Black "chess123456s"]
[Result "0-1"]
[WhiteElo "1869"]
[BlackElo "2552"]
[TimeControl "180+1"]
[EndTime "8:05:13 PST"]
[Termination "chess123456s won by resignation"]

1. e4 {[%clk 0:03:00.9]} 1... e5 {[%clk 0:02:59]} 2. Nf3 {[%clk 0:03:00.3]} 2...
Nc6 {[%clk 0:02:59.3]} 3. d4 {[%clk 0:02:59.9]} 3... exd4 {[%clk 0:02:59.6]} 4.
Nxd4 {[%clk 0:02:59.9]} 4... Nf6 {[%clk 0:03:00.1]} 5. Nc3 {[%clk 0:02:59.5]}
5... Bb4 {[%clk 0:03:00]} 6. Nxc6 {[%clk 0:02:59.1]} 6... bxc6 {[%clk
0:03:00.9]} 7. Bd3 {[%clk 0:02:58.6]} 7... d5 {[%clk 0:03:01.4]} 8. exd5 {[%clk
0:02:58.7]} 8... O-O {[%clk 0:03:01.9]} 9. O-O {[%clk 0:02:58.2]} 9... cxd5
{[%clk 0:03:02.2]} 10. Bg5 {[%clk 0:02:57.6]} 10... Be6 {[%clk 0:03:02.4]} 11.
Qf3 {[%clk 0:02:56.4]} 11... Be7 {[%clk 0:03:02.6]} 12. Rad1 {[%clk 0:02:52.7]}
12... Rb8 {[%clk 0:03:01.9]} 13. b3 {[%clk 0:02:49.6]} 13... h6 {[%clk 0:03:01]}
14. Bh4 {[%clk 0:02:44.9]} 14... Rb4 {[%clk 0:02:52.4]} 15. Bxf6 {[%clk
0:02:31.7]} 15... Bxf6 {[%clk 0:02:51.6]} 16. Ne2 {[%clk 0:02:24.9]} 16... Bg4
{[%clk 0:02:34]} 17. Qg3 {[%clk 0:02:23.2]} 17... Bh4 {[%clk 0:02:28]} 18. Qe3
{[%clk 0:02:17.3]} 18... Re8 {[%clk 0:02:24.3]} 19. Qd2 {[%clk 0:02:17.2]} 19...
Rb6 {[%clk 0:02:19.1]} 20. f3 {[%clk 0:02:11.4]} 20... Be6 {[%clk 0:02:18.2]}
21. Nd4 {[%clk 0:02:09.6]} 21... Bf6 {[%clk 0:02:15.4]} 22. Nxe6 {[%clk
0:02:04.4]} 22... Rbxe6 {[%clk 0:02:12.4]} 23. Rfe1 {[%clk 0:01:57.7]} 23...
Bd4+ {[%clk 0:02:04]} 24. Kf1 {[%clk 0:01:57]} 24... Be3 {[%clk 0:02:00.5]} 25.
Qa5 {[%clk 0:01:53.5]} 25... Qh4 {[%clk 0:01:58.3]} 26. Re2 {[%clk 0:01:30]}
26... Qxh2 {[%clk 0:01:56.9]} 27. Rxe3 {[%clk 0:01:14.7]} 27... Rxe3 {[%clk
0:01:54.7]} 28. Kf2 {[%clk 0:01:04.1]} 28... Qh4+ {[%clk 0:01:52.1]} 29. Kf1
{[%clk 0:00:59.3]} 29... c6 {[%clk 0:01:48.2]} 30. Qc3 {[%clk 0:00:48.3]} 30...
Qh1+ {[%clk 0:01:44.2]} 31. Kf2 {[%clk 0:00:47]} 31... Qxd1 {[%clk 0:01:43.3]}
0-1

[Event "Early-Titled-Tuesday-Blitz-January-30-2024"]
[Site "Chess.com"]
[Date "2024.01.30"]
[Round "1"]
[White "larsmandreassen"]
[Black "DefiantChair"]
[Result "0-1"]
[WhiteElo "2225"]
[BlackElo "2596"]
[TimeControl "180+1"]
[EndTime "8:05:21 PST"]
[Termination "DefiantChair won by resignation"]

1. d4 {[%clk 0:03:00]} 1... Nf6 {[%clk 0:02:59.8]} 2. Nf3 {[%clk 0:02:59.7]}
2... d5 {[%clk 0:02:59.7]} 3. Bg5 {[%clk 0:02:59.6]} 3... Ne4 {[%clk 0:02:58.7]}
4. Bh4 {[%clk 0:02:59.7]} 4... c5 {[%clk 0:02:58.2]} 5. c3 {[%clk 0:02:59.8]}
5... Nc6 {[%clk 0:02:58]} 6. e3 {[%clk 0:03:00]} 6... Qb6 {[%clk 0:02:57.5]} 7.
Qb3 {[%clk 0:02:59.4]} 7... c4 {[%clk 0:02:55.7]} 8. Qxb6 {[%clk 0:02:59.1]}
8... axb6 {[%clk 0:02:56.6]} 9. Nbd2 {[%clk 0:03:00]} 9... Nxd2 {[%clk 0:02:56]}
10. Nxd2 {[%clk 0:02:59.4]} 10... b5 {[%clk 0:02:55.8]} 11. e4 {[%clk
0:02:58.8]} 11... e6 {[%clk 0:02:54.8]} 12. Be2 {[%clk 0:02:59.2]} 12... b4
{[%clk 0:02:53]} 13. exd5 {[%clk 0:02:58.8]} 13... exd5 {[%clk 0:02:52.5]} 14.
O-O {[%clk 0:02:59.1]} 14... Be6 {[%clk 0:02:51.9]} 15. Bf3 {[%clk 0:02:58.9]}
15... b5 {[%clk 0:02:49.8]} 16. Rfe1 {[%clk 0:02:57.9]} 16... Kd7 {[%clk
0:02:48.1]} 17. Nf1 {[%clk 0:02:44.7]} 17... bxc3 {[%clk 0:02:35.3]} 18. bxc3
{[%clk 0:02:45.6]} 18... b4 {[%clk 0:02:34.6]} 19. Ne3 {[%clk 0:02:38.8]} 19...
Ra5 {[%clk 0:02:33.4]} 20. cxb4 {[%clk 0:02:24.6]} 20... Nxb4 {[%clk 0:02:30.6]}
21. Reb1 {[%clk 0:01:56.9]} 21... Bd6 {[%clk 0:02:22.5]} 22. a3 {[%clk
0:01:49.8]} 22... Nc2 {[%clk 0:02:14.2]} 23. Nxc2 {[%clk 0:01:49.1]} 23... Rha8
{[%clk 0:02:12.1]} 24. Bg3 {[%clk 0:01:43.4]} 24... Be7 {[%clk 0:02:11.4]} 25.
Rb7+ {[%clk 0:01:40.6]} 25... Ke8 {[%clk 0:02:10.1]} 26. Nb4 {[%clk 0:00:53.6]}
26... Rxa3 {[%clk 0:02:03.7]} 27. Rxa3 {[%clk 0:00:50.3]} 27... Rxa3 {[%clk
0:02:04]} 28. h3 {[%clk 0:00:47.8]} 28... Rb3 {[%clk 0:01:56.5]} 29. Rb8+ {[%clk
0:00:47.6]} 29... Kd7 {[%clk 0:01:56]} 30. Nxd5 {[%clk 0:00:47.6]} 30... Rxf3
{[%clk 0:01:41.8]} 31. gxf3 {[%clk 0:00:43.5]} 31... Bxd5 {[%clk 0:01:40.5]} 32.
Rb7+ {[%clk 0:00:43.8]} 32... Bxb7 {[%clk 0:01:40.1]} 0-1

[Event "Early-Titled-Tuesday-Blitz-January-30-2024"]
[Site "Chess.com"]
[Date "2024.01.30"]
[Round "1"]
[White "Pastore1978"]
[Black "nindjaxx8"]
[Result "0-1"]
[WhiteElo "2287"]
[BlackElo "2626"]
[TimeControl "180+1"]
[EndTime "8:05:22 PST"]
[Termination "nindjaxx8 won by resignation"]

1. e4 {[%clk 0:03:00.9]} 1... e6 {[%clk 0:02:58]} 2. d4 {[%clk 0:02:58]} 2... d5
{[%clk 0:02:57.5]} 3. exd5 {[%clk 0:02:57.2]} 3... exd5 {[%clk 0:02:58.4]} 4.
Qf3 {[%clk 0:02:57.4]} 4... Nf6 {[%clk 0:02:58.2]} 5. h3 {[%clk 0:02:56.4]} 5...
Bd6 {[%clk 0:02:54.9]} 6. Bd3 {[%clk 0:02:51.8]} 6... O-O {[%clk 0:02:54.2]} 7.
Ne2 {[%clk 0:02:51.7]} 7... Be6 {[%clk 0:02:52.9]} 8. O-O {[%clk 0:02:49.6]}
8... Nbd7 {[%clk 0:02:52.1]} 9. Bf4 {[%clk 0:02:46.7]} 9... Bxf4 {[%clk
0:02:49.4]} 10. Nxf4 {[%clk 0:02:47.6]} 10... Re8 {[%clk 0:02:48.8]} 11. Nd2
{[%clk 0:02:44.3]} 11... c6 {[%clk 0:02:48.7]} 12. c3 {[%clk 0:02:42.3]} 12...
Qb6 {[%clk 0:02:48.7]} 13. b3 {[%clk 0:02:29.2]} 13... Nf8 {[%clk 0:02:36.9]}
14. Rfe1 {[%clk 0:02:16.7]} 14... Re7 {[%clk 0:02:25.3]} 15. Re2 {[%clk
0:02:04.3]} 15... Rae8 {[%clk 0:02:23.5]} 16. Rae1 {[%clk 0:02:04.3]} 16... Qa5
{[%clk 0:02:23]} 17. c4 {[%clk 0:01:52.9]} 17... Qb6 {[%clk 0:01:21.5]} 18. c5
{[%clk 0:01:45.7]} 18... Qb4 {[%clk 0:01:22]} 19. Nxe6 {[%clk 0:01:11.3]} 19...
Nxe6 {[%clk 0:01:22.9]} 20. g4 {[%clk 0:00:48.3]} 20... Nxd4 {[%clk 0:01:15.5]}
21. Qg3 {[%clk 0:00:40.3]} 21... Nxe2+ {[%clk 0:01:13.5]} 22. Rxe2 {[%clk
0:00:34.7]} 22... Rxe2 {[%clk 0:01:13.7]} 23. Bxe2 {[%clk 0:00:34.3]} 23... Qxd2
{[%clk 0:01:14.3]} 0-1

[Event "Early-Titled-Tuesday-Blitz-January-30-2024"]
[Site "Chess.com"]
[Date "2024.01.30"]
[Round "1"]
[White "ljuks68"]
[Black "maciek_92"]
[Result "0-1"]
[WhiteElo "2449"]
[BlackElo "2802"]
[TimeControl "180+1"]
[EndTime "8:05:27 PST"]
[Termination "maciek_92 won by resignation"]

1. e4 {[%clk 0:03:00.9]} 1... c5 {[%clk 0:02:59.8]} 2. Nf3 {[%clk 0:03:01]} 2...
d6 {[%clk 0:02:58.2]} 3. d4 {[%clk 0:03:01.4]} 3... cxd4 {[%clk 0:02:58.9]} 4.
Nxd4 {[%clk 0:03:01.8]} 4... Nf6 {[%clk 0:02:59.6]} 5. Nc3 {[%clk 0:03:02]} 5...
a6 {[%clk 0:02:59.9]} 6. Bg5 {[%clk 0:03:01.9]} 6... Nbd7 {[%clk 0:02:59.6]} 7.
f4 {[%clk 0:03:01.4]} 7... g6 {[%clk 0:02:59.8]} 8. Qe2 {[%clk 0:02:59.9]} 8...
Qc7 {[%clk 0:02:54.6]} 9. O-O-O {[%clk 0:02:56.3]} 9... Bg7 {[%clk 0:02:44]} 10.
Nd5 {[%clk 0:02:54.6]} 10... Nxd5 {[%clk 0:02:43]} 11. exd5 {[%clk 0:02:54.9]}
11... Nf6 {[%clk 0:02:43.6]} 12. Nf3 {[%clk 0:02:03]} 12... O-O {[%clk
0:02:32.1]} 13. Qc4 {[%clk 0:01:58.8]} 13... Qb6 {[%clk 0:02:14.9]} 14. Qb3
{[%clk 0:01:52.2]} 14... Qa5 {[%clk 0:02:08.2]} 15. Be2 {[%clk 0:01:37.9]} 15...
Bf5 {[%clk 0:01:59.9]} 16. Bd3 {[%clk 0:01:36.7]} 16... Bg4 {[%clk 0:01:58.5]}
17. Rhe1 {[%clk 0:01:33.9]} 17... Rfe8 {[%clk 0:01:43.2]} 18. Be2 {[%clk
0:01:31.5]} 18... Rac8 {[%clk 0:01:38]} 19. h3 {[%clk 0:01:11.7]} 19... Bd7
{[%clk 0:01:22.2]} 20. Kb1 {[%clk 0:00:22.2]} 20... Ba4 {[%clk 0:01:19.6]} 0-1

[Event "Early-Titled-Tuesday-Blitz-January-30-2024"]
[Site "Chess.com"]
[Date "2024.01.30"]
[Round "1"]
[White "Arlo2024"]
[Black "Suleyman_Chess06"]
[Result "0-1"]
[WhiteElo "2301"]
[BlackElo "2629"]
[TimeControl "180+1"]
[EndTime "8:05:27 PST"]
[Termination "Suleyman_Chess06 won by resignation"]

1. e4 {[%clk 0:03:00.9]} 1... e6 {[%clk 0:02:58.4]} 2. d4 {[%clk 0:02:59.9]}
2... d5 {[%clk 0:02:58.8]} 3. Nd2 {[%clk 0:02:59.5]} 3... Nf6 {[%clk 0:02:57.4]}
4. e5 {[%clk 0:03:00]} 4... Nfd7 {[%clk 0:02:57.9]} 5. Bd3 {[%clk 0:03:00.4]}
5... c5 {[%clk 0:02:58.6]} 6. c3 {[%clk 0:03:01.1]} 6... Nc6 {[%clk 0:02:59.3]}
7. Ne2 {[%clk 0:03:01.5]} 7... cxd4 {[%clk 0:02:59.3]} 8. cxd4 {[%clk
0:03:01.8]} 8... f6 {[%clk 0:03:00]} 9. Nf4 {[%clk 0:03:01.8]} 9... Nxd4 {[%clk
0:03:00]} 10. Qh5+ {[%clk 0:03:02]} 10... Ke7 {[%clk 0:03:00.6]} 11. exf6+
{[%clk 0:03:02.2]} 11... Nxf6 {[%clk 0:03:00.6]} 12. Ng6+ {[%clk 0:03:02.9]}
12... hxg6 {[%clk 0:03:01.2]} 13. Qxh8 {[%clk 0:03:03.4]} 13... Kf7 {[%clk
0:03:01.9]} 14. O-O {[%clk 0:03:01.4]} 14... e5 {[%clk 0:03:01.8]} 15. Nb3
{[%clk 0:03:00.4]} 15... Bf5 {[%clk 0:02:56.1]} 16. Bxf5 {[%clk 0:02:43.7]}
16... Nxf5 {[%clk 0:02:51.8]} 17. Qh3 {[%clk 0:02:18.5]} 17... Bd6 {[%clk
0:02:49.8]} 18. Bg5 {[%clk 0:02:17.1]} 18... Qb6 {[%clk 0:02:41.8]} 19. Rac1
{[%clk 0:02:12.9]} 19... e4 {[%clk 0:02:36.1]} 20. Rfd1 {[%clk 0:02:05.6]} 20...
Rd8 {[%clk 0:02:27.2]} 21. Bxf6 {[%clk 0:02:02.2]} 21... gxf6 {[%clk 0:02:26.9]}
22. Qh7+ {[%clk 0:01:48.4]} 22... Ng7 {[%clk 0:02:26.4]} 23. Qh3 {[%clk
0:01:19.3]} 23... Be5 {[%clk 0:02:22.9]} 24. Qe3 {[%clk 0:01:13.5]} 24... Qxe3
{[%clk 0:02:19.8]} 25. fxe3 {[%clk 0:01:14.4]} 25... Nf5 {[%clk 0:02:18.4]} 26.
Kf2 {[%clk 0:01:05]} 26... Bxh2 {[%clk 0:02:15.8]} 27. Nd4 {[%clk 0:00:58.4]}
27... Nxd4 {[%clk 0:02:15.9]} 28. Rxd4 {[%clk 0:00:54.9]} 28... Be5 {[%clk
0:02:16.3]} 29. Rd2 {[%clk 0:00:52.6]} 29... Ke6 {[%clk 0:02:16.4]} 30. Rh1
{[%clk 0:00:50.1]} 30... Rd7 {[%clk 0:02:11.2]} 31. Rh6 {[%clk 0:00:48.7]} 31...
Kf5 {[%clk 0:02:08.6]} 32. Rh8 {[%clk 0:00:41.6]} 32... Ke6 {[%clk 0:02:07.2]}
33. Rh6 {[%clk 0:00:40.5]} 33... d4 {[%clk 0:02:00.5]} 34. exd4 {[%clk
0:00:36.5]} 34... Bf4 {[%clk 0:02:00.5]} 35. d5+ {[%clk 0:00:32.4]} 35... Kf5
{[%clk 0:01:59.3]} 36. Rh7 {[%clk 0:00:18]} 36... Rxh7 {[%clk 0:01:56.7]} 0-1

[Event "Early-Titled-Tuesday-Blitz-January-30-2024"]
[Site "Chess.com"]
[Date "2024.01.30"]
[Round "1"]
[White "sokidze"]
[Black "Flaccidmoves"]
[Result "1-0"]
[WhiteElo "2849"]
[BlackElo "2471"]
[TimeControl "180+1"]
[EndTime "8:05:32 PST"]
[Termination "sokidze won by checkmate"]

1. e4 {[%clk 0:03:00.9]} 1... g6 {[%clk 0:02:59.7]} 2. d4 {[%clk 0:03:00.7]}
2... Bg7 {[%clk 0:03:00.3]} 3. Nc3 {[%clk 0:03:00.8]} 3... d6 {[%clk 0:03:00.8]}
4. g3 {[%clk 0:03:01]} 4... e5 {[%clk 0:02:57.6]} 5. dxe5 {[%clk 0:02:58.6]}
5... dxe5 {[%clk 0:02:58.2]} 6. Qxd8+ {[%clk 0:02:57.4]} 6... Kxd8 {[%clk
0:02:59.1]} 7. Bc4 {[%clk 0:02:55.9]} 7... f6 {[%clk 0:02:51.2]} 8. Be3 {[%clk
0:02:49.8]} 8... c6 {[%clk 0:02:49.4]} 9. O-O-O+ {[%clk 0:02:49.2]} 9... Kc7
{[%clk 0:02:49.3]} 10. f4 {[%clk 0:02:40.5]} 10... Nd7 {[%clk 0:02:37.2]} 11.
Nf3 {[%clk 0:02:35.5]} 11... Ne7 {[%clk 0:02:30]} 12. fxe5 {[%clk 0:02:23.2]}
12... Nxe5 {[%clk 0:02:26.3]} 13. Nxe5 {[%clk 0:02:21.8]} 13... fxe5 {[%clk
0:02:27.2]} 14. Bc5 {[%clk 0:02:22.1]} 14... Re8 {[%clk 0:01:57.6]} 15. Bd6+
{[%clk 0:02:05.2]} 15... Kb6 {[%clk 0:01:56.3]} 16. Na4+ {[%clk 0:01:28.4]}
16... Ka5 {[%clk 0:01:54.9]} 17. Nc5 {[%clk 0:00:58.4]} 17... b5 {[%clk
0:01:17]} 18. Bf7 {[%clk 0:00:31]} 18... Bg4 {[%clk 0:01:17.1]} 19. Bc7+ {[%clk
0:00:27.8]} 19... Kb4 {[%clk 0:01:15.5]} 20. Na6+ {[%clk 0:00:26.5]} 20... Ka4
{[%clk 0:01:09.4]} 21. Bb3# {[%clk 0:00:25.5]} 1-0

[Event "Early-Titled-Tuesday-Blitz-January-30-2024"]
[Site "Chess.com"]
[Date "2024.01.30"]
[Round "1"]
[White "AlmasRakhmatullaev"]
[Black "Shushik"]
[Result "1-0"]
[WhiteElo "2953"]
[BlackElo "2516"]
[TimeControl "180+1"]
[EndTime "8:05:49 PST"]
[Termination "AlmasRakhmatullaev won by resignation"]

1. e4 {[%clk 0:03:00.9]} 1... e5 {[%clk 0:03:00]} 2. Nf3 {[%clk 0:03:00.9]} 2...
Nc6 {[%clk 0:03:00.8]} 3. Bc4 {[%clk 0:03:00.9]} 3... Bc5 {[%clk 0:03:01]} 4. c3
{[%clk 0:03:00.9]} 4... Nf6 {[%clk 0:03:01.3]} 5. d4 {[%clk 0:03:01.6]} 5...
exd4 {[%clk 0:03:01.4]} 6. cxd4 {[%clk 0:03:02.5]} 6... Bb4+ {[%clk 0:03:00.6]}
7. Nbd2 {[%clk 0:03:03.2]} 7... d5 {[%clk 0:02:51]} 8. exd5 {[%clk 0:03:03.3]}
8... Nxd5 {[%clk 0:02:51.9]} 9. O-O {[%clk 0:03:03]} 9... O-O {[%clk 0:02:51.8]}
10. a3 {[%clk 0:03:02.4]} 10... Be7 {[%clk 0:02:50.7]} 11. Re1 {[%clk
0:03:02.2]} 11... Be6 {[%clk 0:02:36.2]} 12. Ne4 {[%clk 0:03:00.7]} 12... Ne3
{[%clk 0:02:17.5]} 13. Bxe3 {[%clk 0:02:53.8]} 13... Bxc4 {[%clk 0:02:17.8]} 14.
Rc1 {[%clk 0:02:53.7]} 14... Be6 {[%clk 0:02:10.2]} 15. b4 {[%clk 0:02:49.2]}
15... a6 {[%clk 0:02:08.4]} 16. Qd2 {[%clk 0:02:37.5]} 16... Qd5 {[%clk
0:01:54.7]} 17. Nc3 {[%clk 0:02:30.2]} 17... Qh5 {[%clk 0:01:54.6]} 18. Bf4
{[%clk 0:02:23.9]} 18... Bf6 {[%clk 0:01:29.1]} 19. Ne4 {[%clk 0:02:19.4]} 19...
Bd8 {[%clk 0:01:16.1]} 20. Rc5 {[%clk 0:02:17.1]} 20... Qg6 {[%clk 0:01:07.3]}
21. d5 {[%clk 0:02:15.7]} 21... Bf5 {[%clk 0:01:02]} 22. Ng3 {[%clk 0:02:13]}
22... Nb8 {[%clk 0:00:53]} 23. Bxc7 {[%clk 0:02:04]} 23... Bxc7 {[%clk 0:00:52]}
24. Rxc7 {[%clk 0:02:04.9]} 24... Qb6 {[%clk 0:00:43.8]} 25. Ree7 {[%clk
0:01:54.4]} 25... Bg6 {[%clk 0:00:40.7]} 26. Rxb7 {[%clk 0:01:50.5]} 26... Qf6
{[%clk 0:00:40.6]} 27. h4 {[%clk 0:01:46]} 27... h5 {[%clk 0:00:39.6]} 28. Qd4
{[%clk 0:01:43.5]} 28... Qd6 {[%clk 0:00:37.2]} 29. Qe5 {[%clk 0:01:36.7]} 29...
Qd8 {[%clk 0:00:33.4]} 30. Ng5 {[%clk 0:01:31.3]} 30... a5 {[%clk 0:00:31.5]}
31. Ne6 {[%clk 0:01:30.3]} 1-0

[Event "Early-Titled-Tuesday-Blitz-January-30-2024"]
[Site "Chess.com"]
[Date "2024.01.30"]
[Round "1"]
[White "ural58"]
[Black "MyDream003"]
[Result "0-1"]
[WhiteElo "2462"]
[BlackElo "2818"]
[TimeControl "180+1"]
[EndTime "8:05:51 PST"]
[Termination "MyDream003 won by resignation"]

1. e4 {[%clk 0:02:49.7]} 1... c6 {[%clk 0:02:57.8]} 2. Nc3 {[%clk 0:02:47.8]}
2... d5 {[%clk 0:02:57.5]} 3. Nf3 {[%clk 0:02:47.1]} 3... Bg4 {[%clk 0:02:55]}
4. h3 {[%clk 0:02:46.5]} 4... Bxf3 {[%clk 0:02:54.9]} 5. Qxf3 {[%clk 0:02:46.2]}
5... e6 {[%clk 0:02:55.8]} 6. b3 {[%clk 0:02:44.7]} 6... g6 {[%clk 0:02:49.5]}
7. exd5 {[%clk 0:02:39.4]} 7... cxd5 {[%clk 0:02:47]} 8. Bb5+ {[%clk 0:02:38.7]}
8... Nc6 {[%clk 0:02:46.3]} 9. O-O {[%clk 0:02:38.7]} 9... Bg7 {[%clk
0:02:46.6]} 10. Ba3 {[%clk 0:02:37.9]} 10... Ne7 {[%clk 0:02:43.1]} 11. Rae1
{[%clk 0:02:30.9]} 11... O-O {[%clk 0:02:41.6]} 12. Bxc6 {[%clk 0:01:57.8]}
12... bxc6 {[%clk 0:02:41.1]} 13. Na4 {[%clk 0:01:58.7]} 13... Re8 {[%clk
0:02:38.1]} 14. c3 {[%clk 0:01:57.7]} 14... Nf5 {[%clk 0:02:37.1]} 15. d4 {[%clk
0:01:57.7]} 15... e5 {[%clk 0:02:32.8]} 16. dxe5 {[%clk 0:01:56.7]} 16... Bxe5
{[%clk 0:02:32.5]} 17. Bc5 {[%clk 0:01:52.1]} 17... Qd7 {[%clk 0:02:27.2]} 18.
Qd3 {[%clk 0:01:44.9]} 18... Re6 {[%clk 0:02:15.9]} 19. f4 {[%clk 0:01:43.9]}
19... Bf6 {[%clk 0:02:12.8]} 20. Rxe6 {[%clk 0:01:41.8]} 20... Qxe6 {[%clk
0:02:13.7]} 21. g4 {[%clk 0:01:39.9]} 21... Nh4 {[%clk 0:02:05.1]} 22. Bf2
{[%clk 0:01:37.1]} 22... h6 {[%clk 0:01:50.1]} 23. f5 {[%clk 0:01:19.1]} 23...
Qd6 {[%clk 0:01:36.9]} 24. Bg3 {[%clk 0:01:15.5]} 24... Qe7 {[%clk 0:01:21.1]}
25. Re1 {[%clk 0:01:12.1]} 25... Qf8 {[%clk 0:01:07]} 26. fxg6 {[%clk
0:01:11.8]} 26... Nxg6 {[%clk 0:01:07.9]} 27. Rf1 {[%clk 0:01:08.5]} 27... Bg7
{[%clk 0:01:06.6]} 28. h4 {[%clk 0:01:08.4]} 28... Re8 {[%clk 0:01:05.1]} 29. h5
{[%clk 0:01:08.4]} 29... Ne5 {[%clk 0:01:05.3]} 30. Bxe5 {[%clk 0:01:06.7]}
30... Rxe5 {[%clk 0:01:06.1]} 31. Qf3 {[%clk 0:01:06.3]} 31... Qe7 {[%clk
0:01:05.9]} 32. b4 {[%clk 0:01:05.3]} 32... Re3 {[%clk 0:01:01.5]} 33. Qf5
{[%clk 0:01:02.2]} 33... Rg3+ {[%clk 0:00:55.5]} 0-1